[Event "44th Chess Olympiad Open 2022"]
[Site "Chennai"]
[Date "2022.08.07"]
[Round "9.25"]
[White "Ferreira, Jorge Viterbo"]
[Black "Georgiadis, Nico"]
[Result "1-0"]
[WhiteElo "2499"]
[BlackElo "2578"]
[Annotator "TA"]
[PlyCount "95"]
[EventDate "2022.??.??"]
[TimeControl "60"]

{[%evp 9,95,12,8,8,14,6,8,3,0,10,6,13,8,11,11,19,31,35,42,42,68,5,62,52,45,39,
42,44,64,51,33,46,82,41,50,63,105,93,97,95,96,88,107,110,98,100,112,110,108,
113,104,114,105,106,162,163,182,206,214,212,238,227,216,213,250,211,379,370,
564,564,554,521,459,337,454,445,447,394,1124,1149,5081,4296,10014,9243,1967,
808,554,474]} 1. c4 {[%emt 0:00:02] Giri, Anish} e5 {[%emt 0:00:08]} 2. g3 {
[%emt 0:00:08]} c6 {[%emt 0:00:08]} 3. Nf3 {[%emt 0:00:22]} e4 {[%emt 0:00:09]}
4. Nd4 {[%emt 0:00:07]} d5 {[%emt 0:00:07]} 5. cxd5 {[%emt 0:00:11]} Qxd5 {
[%emt 0:00:08]} 6. Nc2 {[%emt 0:03:32] A20: English Opening: 1...e5.} Nf6 {
[%emt 0:03:32]} 7. Nc3 {[%emt 0:00:00]} Qe5 {[%emt 0:00:19]} 8. Bg2 {[%emt 0:
00:00] The position is equal.} Na6 {[%emt 0:01:13]} 9. O-O {[%emt 0:00:23]} (9.
d4 {with more complications.} exd3 10. Qxd3 Nb4 11. Nxb4 Bxb4 12. a3) 9... Be7
10. Ne3 $1 {[%emt 0:00:57]} h5 {[%emt 0:07:47]} 11. d4 {[%emt 0:00:00]} exd3 $1
{[%emt 0:00:11]} 12. exd3 {[%emt 0:09:39][%cal Ye2d3,Yd3d4] [#]} O-O $146 {
[%emt 0:03:16]} ({Predecessor:} 12... Qd4 13. Nc2 Qg4 14. Bf4 Qxd1 15. Raxd1
Bg4 16. Rd2 O-O-O 17. d4 Nc7 18. Ne3 Be6 {½-½ (40) Giri,A (2763) -Grischuk,A
(2777) Ekaterinburg 2020 CBM 202 [Giri, Anish]}) 13. d4 {[%emt 0:00:00]} Qc7 {
[%emt 0:14:21]} 14. d5 {[%emt 0:05:32]} Rd8 {[%emt 0:06:30]} 15. Qf3 {[%emt 0:
07:55]} (15. Qe2 $14) 15... Bf8 {[%emt 0:31:57]} (15... Nb4 $11) 16. dxc6 $14 {
[%emt 0:08:41]} bxc6 {[%emt 0:04:58]} 17. Qxc6 {[%emt 0:08:17]} Qxc6 {[%emt 0:
00:00]} 18. Bxc6 {[%emt 0:00:07]} Rb8 {[%emt 0:04:51]} 19. Ned5 {[%emt 0:04:00]
} Nxd5 {[%emt 0:00:00]} 20. Bxd5 {[%emt 0:18:00]} ({Of course not} 20. Nxd5 Rd6
21. Bf4 Rxc6 $15) 20... Bh3 {[%emt 0:03:24]} 21. Bg2 {[%emt 0:00:00]} Bxg2 {
[%emt 0:06:52]} 22. Kxg2 {[%emt 0:00:00]} Rdc8 {[%emt 0:07:53]} 23. Na4 {
[%emt 0:00:00]} Nc5 {[%emt 0:00:00]} 24. Nxc5 {[%emt 0:00:00]} Bxc5 {[%emt 0:
05:05]} 25. Rb1 {[%emt 0:04:13]} Rb7 {[%emt 0:01:56]} 26. Bf4 {[%emt 0:00:00] 
[#] Black must now prevent Rfc1.} Bd4 {[%emt 0:00:00]} 27. b3 {[%emt 0:00:00]}
Rc2 {[%emt 0:00:00]} 28. Rbd1 {[%emt 0:00:12]} Bb6 {[%emt 0:00:00]} 29. Rd2 {
[%emt 0:00:28]} Rxd2 {[%emt 0:00:00]} 30. Bxd2 $16 {[%emt 0:00:01] Endgame
KRB-KRB} Rd7 {[%emt 0:01:02]} 31. Bf4 {[%emt 0:02:05]} h4 {[%emt 0:02:05]} (
31... Rd3 $16) 32. gxh4 $18 {[%emt 0:02:06][%cal Yg3h4,Yh4h5,Yh5h6]} Bd8 {
[%emt 0:00:00]} 33. h5 {[%emt 0:01:54]} Kh7 {[%emt 0:00:00] [#]} 34. Re1 $1 {
[%emt 0:03:01]} f6 {[%emt 0:00:00]} 35. Re2 {[%emt 0:00:00]} Ba5 {[%emt 0:02:
20] Against Rd2} 36. Re6 {[%emt 0:03:54]} Bb4 {[%emt 0:00:00]} 37. h6 {[%emt 0:
00:35]} g5 $2 {[%emt 0:00:00]} (37... Bd2 {is a better defense.}) 38. Be3 {
[%emt 0:00:08]} Bd2 {[%emt 0:00:00]} (38... Bc3 $142 39. Ra6 Kxh6) 39. Rxf6 {
[%emt 0:07:03]} Bxe3 {[%emt 0:00:00]} 40. fxe3 {[%emt 0:00:00][%cal Yf2e3,
Ye3e4,Ye4e5] KR-KR} Rd2+ {[%emt 0:00:00]} 41. Rf2 {[%emt 0:30:12]} Rd7 {
[%emt 0:01:01]} 42. Kf3 {[%emt 0:01:49]} Kxh6 {[%emt 0:00:00]} 43. e4 {[%emt 0:
00:00] Hoping for e5.} a5 $2 {[%emt 0:01:51]} (43... Re7 44. Rg2 Re6) 44. e5 {
[%emt 0:02:49] White is clearly winning.} a4 {[%emt 0:00:00]} 45. Ke4 {[%emt 0:
00:00]} axb3 {[%emt 0:00:00]} 46. axb3 {[%emt 0:00:00]} Rb7 {[%emt 0:00:00]}
47. Rf3 {[%emt 0:00:00]} (47. e6 $142 Kg6 48. Rf8) 47... g4 {[%emt 0:06:26]}
48. Rg3 {[%emt 0:00:00] Weighted Error Value: White=0.11 (very precise) /
Black=0.24 (precise)} 1-0

[Event "44th Chess Olympiad Open 2022"]
[Site "Chennai"]
[Date "2022.08.07"]
[Round "9.25"]
[White "Kurmann, Oliver"]
[Black "Santos, Jose Guilherme B Li"]
[Result "1/2-1/2"]
[WhiteElo "2463"]
[BlackElo "2361"]
[Annotator "TA"]
[PlyCount "66"]
[EventDate "2022.??.??"]
[TimeControl "60"]

{[%evp 9,66,25,19,0,16,-19,-17,-17,-17,-23,-30,-41,-19,-18,-21,-46,0,-9,-2,-8,
-16,-52,-7,0,-8,-14,0,-81,-77,-95,0,-16,43,41,222,39,87,41,86,46,33,48,116,99,
102,70,143,106,119,0,0,0,58,30,268,267,242,0,243]} 1. e4 {[%emt 0:00:03][%cal
Ye2e4,Ye4e5]} c6 {[%emt 0:00:10]} 2. d4 {[%emt 0:00:08]} d5 {[%emt 0:00:00]} 3.
e5 {[%emt 0:00:13]} Bf5 {[%emt 0:00:05]} 4. h4 {[%emt 0:00:18]} h5 {[%emt 0:00:
24]} 5. Bd3 {[%emt 0:00:09]} Bxd3 {[%emt 0:00:24]} 6. Qxd3 {[%emt 0:00:00]
[%cal Ye5e6] B12: Caro-Kann: Advance Variation.} Qa5+ {[%emt 0:00:12]} 7. b4 {
[%emt 0:00:39]} Qxb4+ {[%emt 0:00:04]} 8. Nd2 {[%emt 0:00:12][%cal Ye5e6]} e6 {
[%emt 0:01:23]} 9. Rb1 {[%emt 0:00:10]} Qe7 {[%emt 0:00:04]} 10. c4 {[%emt 0:
00:10] [#]} b6 $146 {[%emt 0:18:16]} ({Predecessor:} 10... Nh6 11. Ne2 Na6 12.
c5 Nf5 13. Nf3 b5 14. Ng3 Nc7 15. Nxf5 exf5 16. Qxf5 Qd7 17. Qxd7+ Kxd7 {
0-1 (118) Martinez Alcantara,J (2591)-Melkumyan,H (2634) Chess.com INT 2022})
11. Ne2 {[%emt 0:09:54]} Qd7 {[%emt 0:03:49]} 12. Ba3 {[%emt 0:07:44]} Ne7 {
[%emt 0:16:21]} 13. Ng3 {[%emt 0:09:59]} Ng6 {[%emt 0:00:26] Threatening ...c5.
} 14. Bxf8 {[%emt 0:02:15]} Kxf8 {[%emt 0:00:09]} 15. Rd1 {[%emt 0:21:41]} Qe7
{[%emt 0:08:06]} 16. cxd5 {[%emt 0:00:27]} cxd5 {[%emt 0:00:34]} 17. Rc1 {
[%emt 0:00:12] Against Nc6} Qd7 {[%emt 0:11:59] Against Rc8+} 18. Nf3 {[%emt 0:
00:00]} (18. Rc3 $11 {keeps the balance.}) 18... Nc6 $17 {[%emt 0:03:44]} 19.
O-O {[%emt 0:01:52]} Nge7 {[%emt 0:03:39]} ({Black should try} 19... Na5 $1 $17
20. Ne2 Nc4) 20. Qe3 {[%emt 0:04:14]} f6 {[%emt 0:11:54]} (20... Rc8 $11) 21.
Rfe1 $14 {[%emt 0:08:47] Threatens to win with exf6.} Kf7 {[%emt 0:03:21]} ({
Better is} 21... Rc8 $14) 22. Ne2 $2 {[%emt 0:00:10]} ({Only move:} 22. exf6
$18 gxf6 23. Qf4) 22... Ng6 {[%emt 0:01:20]} (22... fxe5 $14 23. Nxe5+ Nxe5 24.
Qxe5 Ng6) 23. Nf4 $16 {[%emt 0:01:31]} Nxf4 {[%emt 0:03:13]} 24. Qxf4 {[%emt 0:
00:00]} f5 {[%emt 0:03:24]} 25. Ng5+ {[%emt 0:01:44] White has compensation.}
Ke8 {[%emt 0:00:05] [#]} (25... Kg8 $14) 26. Re3 $1 {[%emt 0:00:00] Black must
now prevent Rec3.} Na5 {[%emt 0:00:40]} 27. Nh3 {[%emt 0:01:44] White is much
more active. The black rooks are badly placed.} Rh6 {[%emt 0:00:00]} ({Black
should play} 27... Qf7 $14) 28. Rg3 {[%emt 0:00:18]} Nc4 {[%emt 0:00:00]} 29.
Qxh6 {[%emt 0:02:24]} gxh6 $11 {[%emt 0:00:04]} 30. Rg8+ {[%emt 0:00:00]} Kf7 {
[%emt 0:00:02]} (30... Ke7 $11 31. Rxa8 Qa4) 31. Rxa8 $14 {[%emt 0:00:12]
Black should prevent Nf4.} Qb7 $2 {[%emt 0:00:21]} (31... Qa4 $11) 32. Rh8 $18
{[%emt 0:02:44] Strongly threatening Rh7+. Really sharp!} Kg7 {[%emt 0:00:39] 
[#] Against Rh7+} 33. Re8 {[%emt 0:00:12]} (33. Rd8 $1 $18) 33... Qd7 $2 {
[%emt 0:00:58] Weighted Error Value: White=0.37/Black=0.51} (33... Kf7 $11 {
and Black stays safe.} 34. Rh8 Kg7) 1/2-1/2

[Event "44th Chess Olympiad Open 2022"]
[Site "Chennai"]
[Date "2022.08.07"]
[Round "9.25"]
[White "Sousa, Andre Ventura"]
[Black "Pelletier, Yannick"]
[Result "1/2-1/2"]
[WhiteElo "2420"]
[BlackElo "2551"]
[Annotator "TA"]
[PlyCount "63"]
[EventDate "2022.??.??"]
[TimeControl "60"]

{[%evp 9,63,6,7,0,24,3,14,7,0,4,7,0,0,8,10,8,15,16,15,10,10,11,28,10,16,4,0,6,
4,7,14,0,0,0,28,21,28,28,29,25,21,11,11,0,0,0,0,0,9,0,0,0,0,0,0,0]} 1. c4 {
[%emt 0:00:02] ChessBase II} Nf6 {[%emt 0:00:57]} 2. g3 {[%emt 0:01:45]} e6 {
[%emt 0:02:36]} 3. Bg2 {[%emt 0:00:00]} d5 {[%emt 0:00:04]} 4. Nf3 {[%emt 0:00:
00]} dxc4 {[%emt 0:02:11]} 5. Qa4+ {[%emt 0:00:00]} Bd7 {[%emt 0:00:54]} 6.
Qxc4 {[%emt 0:00:00] A13: English Opening: 1...e6.} c5 {[%emt 0:00:04]} 7. Ne5
{[%emt 0:00:00]} Qc8 {[%emt 0:02:32]} 8. O-O {[%emt 0:00:00]} Nc6 {[%emt 0:00:
00] Against d4} 9. Nxd7 {[%emt 0:00:00]} (9. d4 {looks sharper.} cxd4 10. Bxc6
Bxc6 11. Rd1) 9... Qxd7 {[%emt 0:00:11]} 10. Nc3 {[%emt 0:00:00]} Rc8 {[%emt 0:
00:00][%cal Ya8c8,Yc8c6,Yc6b6,Yb6b5]} 11. d3 {[%emt 0:09:44]} Be7 {[%emt 0:04:
14]} 12. a4 {[%emt 0:14:53]} b6 {[%emt 0:00:30] [#]} 13. Bxc6 $146 {[%emt 0:00:
29]} ({Predecessor:} 13. Be3 O-O 14. Rac1 Rfd8 15. Rfe1 Nd5 16. Nxd5 exd5 17.
Qb5 Qe6 18. d4 c4 19. b3 {½-½ (88) Tari,A (2584)-Grandelius,N (2642) Wijk
aan Zee 2017 CBM 177 [ChessBase II]}) 13... Rxc6 {[%emt 0:03:23]} 14. a5 {
[%emt 0:07:13]} O-O {[%emt 0:07:26]} 15. axb6 {[%emt 0:00:43]} Rxb6 {[%emt 0:
00:00]} 16. Na4 {[%emt 0:01:48]} Rb5 {[%emt 0:09:54]} 17. Bg5 {[%emt 0:26:55]
[%cal Yc1g5,Yg5d2,Yd2c3]} Rc8 {[%emt 0:09:57]} 18. Rfc1 {[%emt 0:00:00]} h6 {
[%emt 0:02:40]} 19. Bd2 {[%emt 0:05:02][%cal Yb2b4] Against Rb4} Nd5 {[%emt 0:
04:55] Inhibits b4.} 20. Ra3 {[%emt 0:14:49]} Rcb8 {[%emt 0:01:52]} 21. e4 {
[%emt 0:02:33]} Nb6 {[%emt 0:00:13]} 22. Nxb6 {[%emt 0:00:00]} R5xb6 {[%emt 0:
01:32]} 23. Bc3 {[%emt 0:01:00]} R8b7 {[%emt 0:01:30]} 24. Rca1 {[%emt 0:02:22]
} Rd6 {[%emt 0:00:58]} 25. Be5 {[%emt 0:00:13] The position is equal.} Rdb6 {
[%emt 0:06:09]} 26. Ra6 {[%emt 0:00:13]} Bf6 {[%emt 0:09:33]} 27. Bxf6 {
[%emt 0:00:00]} gxf6 {[%emt 0:03:58]} 28. Rxb6 Rxb6 29. Ra3 Qd4 30. b3 Rd6 31.
Rxa7 Qxd3 32. Qxd3 {An interesting draw. Weighted Error Value: White=0.04 
(flawless) /Black=0.02 (flawless)} 1/2-1/2

[Event "44th Chess Olympiad Open 2022"]
[Site "Chennai"]
[Date "2022.08.07"]
[Round "9.26"]
[White "Djukic, Nikola"]
[Black "Gourlay, Iain"]
[Result "1/2-1/2"]
[WhiteElo "2526"]
[BlackElo "2321"]
[Annotator "TA"]
[PlyCount "80"]
[EventDate "2022.??.??"]
[TimeControl "60"]

{[%evp 9,80,18,25,12,12,10,14,8,36,30,30,32,44,26,29,31,25,38,35,31,40,28,42,
31,59,0,0,-30,0,-39,-24,-62,0,0,102,0,72,0,0,0,131,46,51,20,39,50,18,39,76,110,
79,59,86,79,82,0,0,0,31,24,25,24,47,25,33,0,0,0,0,0,8,8,8]} 1. e4 {[%emt 0:00:
00]} c6 {[%emt 0:00:09]} 2. d4 {[%emt 0:00:08]} d5 {[%emt 0:00:09]} 3. e5 {
[%emt 0:00:09]} c5 {[%emt 0:00:23]} 4. Nf3 {[%emt 0:00:07]} cxd4 {[%emt 0:00:
00]} 5. Nxd4 {[%emt 0:00:15]} Nc6 {[%emt 0:00:33]} 6. Nxc6 {[%emt 0:02:20] B12:
Caro-Kann: Advance Variation.} bxc6 {[%emt 0:00:12]} 7. Bd3 {[%emt 0:00:21]} e6
{[%emt 0:01:41]} 8. Be3 {[%emt 0:10:32]} Ba6 {[%emt 0:07:28]} 9. O-O {[%emt 0:
00:00]} Bxd3 {[%emt 0:00:38]} 10. cxd3 {[%emt 0:00:04]} Ne7 {[%emt 0:06:19] [#]
} 11. Qc2 $146 {[%emt 0:15:08]} ({Predecessor:} 11. Qa4 Qd7 12. Rc1 Ng6 13. f4
c5 14. Qxd7+ Kxd7 15. g3 a5 16. Nd2 a4 17. Bxc5 Bxc5+ 18. Rxc5 {1-0 (38)
Martinez Alcantara,J (2615)-Grandelius,N (2672) Chess.com INT 2022}) 11... Qc7
{[%emt 0:04:18]} 12. f4 {[%emt 0:06:58]} Nf5 {[%emt 0:06:51]} 13. Bf2 {[%emt 0:
00:00]} h5 {[%emt 0:00:08]} 14. Rc1 {[%emt 0:07:53]} Kd7 {[%emt 0:22:07]} 15.
Nd2 {[%emt 0:07:43]} Be7 {[%emt 0:01:29]} 16. Qd1 {[%emt 0:14:59]} g5 {[%emt 0:
00:00]} 17. d4 {[%emt 0:19:10]} (17. fxg5 $14 Bxg5 18. d4) 17... gxf4 $11 {
[%emt 0:02:59]} 18. Nf3 {[%emt 0:00:05]} Rhg8 {[%emt 0:03:20]} 19. Rc3 {
[%emt 0:02:09]} Rab8 {[%emt 0:08:04]} 20. Qc2 {[%emt 0:02:06]} Rg6 {[%emt 0:00:
00]} ({Black should try} 20... Qb6 $15 21. Rb1 a5) 21. Rc1 {[%emt 0:02:09]
[%cal Rc3c6]} c5 {[%emt 0:02:34]} (21... Rb6 $11 {keeps the balance.}) 22. dxc5
$16 {[%emt 0:01:29] Strongly threatening Qa4+.} Qc6 {[%emt 0:00:43] [#]
Inhibits Qa4.} (22... Rbg8 $1 $11 23. Ne1 (23. c6+ Ke8 $16) 23... Kc8) 23. Ra3
{[%emt 0:02:59]} (23. Kh1 $1 $16) 23... Rbg8 $1 $11 {[%emt 0:01:09]} 24. Rxa7+
{[%emt 0:00:17]} Ke8 {[%emt 0:00:05]} (24... Kc8 $1 $11 25. Kf1 Rxg2) 25. Qa4 {
[%emt 0:01:27]} ({Better is} 25. Ne1 $16) 25... Rxg2+ {[%emt 0:01:59]} 26. Kf1
{[%emt 0:00:04][%cal Yg1f1,Yf1e1,Ye1f2] Dancing on a razor blade.} Qxa4 {
[%emt 0:01:37]} 27. Rxa4 {[%emt 0:00:06]} Ne3+ {[%emt 0:02:18]} 28. Ke1 {
[%emt 0:00:08]} Rxf2 {[%emt 0:07:41]} 29. Kxf2 {[%emt 0:01:33]} ({Don't play} 
29. Ra8+ Kd7 30. c6+ (30. Ra7+ Ke8 $11) 30... Kc7 31. Ra7+ Kc8 32. Kxf2 Rg2+
33. Ke1 Bb4+ 34. Rc3 Rxb2 35. Ra8+ Kc7 36. Ra7+ Kc8 37. Ra8+ Kc7 38. Ra7+ Kc8
$11) 29... Rg2+ {[%emt 0:00:08]} 30. Ke1 {[%emt 0:00:06] Hoping for Ra8+.} Nc2+
{[%emt 0:00:13] [#]} 31. Rxc2 $1 {[%emt 0:00:36]} Rxc2 $16 {[%emt 0:00:08]
Endgame KRB-KRN} 32. b4 {[%emt 0:00:21]} (32. Ra8+ $16 Kd7 33. Ra7+ Ke8 34. b4)
32... f6 $1 $11 {[%emt 0:00:25]} 33. Ra6 {[%emt 0:02:45]} Rc4 {[%emt 0:02:53]}
34. Rxe6 {[%emt 0:00:48]} Kd7 {[%emt 0:00:16]} 35. Rb6 {[%emt 0:01:25]} Re4+ {
[%emt 0:00:14]} 36. Kf2 {[%emt 0:00:35]} (36. Kf1 $5 {[%cal Re5f6]} fxe5 37.
Rh6 $11 (37. Nd2 Re3 $11)) 36... fxe5 {[%emt 0:00:08]} 37. a4 {[%emt 0:00:14]}
(37. Rh6 $5 {[%cal Rc5c6]}) 37... Rxb4 {[%emt 0:02:17] The position is equal.}
38. Nxe5+ {[%emt 0:00:07]} Kc7 {[%emt 0:00:21]} 39. Rxb4 {[%emt 0:01:21] Nd3
would kill now.} Bxc5+ {[%emt 0:00:10]} 40. Kf3 {[%emt 0:00:09]} Bxb4 {[%emt 0:
00:00] Weighted Error Value: White=0.17 (very precise) /Black=0.23 (precise)}
1/2-1/2

[Event "44th Chess Olympiad Open 2022"]
[Site "Chennai"]
[Date "2022.08.07"]
[Round "9.26"]
[White "Blagojevic, Dragisa"]
[Black "Tate, Alan"]
[Result "1/2-1/2"]
[WhiteElo "2499"]
[BlackElo "2313"]
[Annotator "TA"]
[PlyCount "67"]
[EventDate "2022.??.??"]
[TimeControl "60"]

{[%evp 10,67,23,19,1,15,14,12,13,13,12,3,9,2,4,12,12,6,7,8,10,7,13,13,13,8,20,
12,18,0,0,0,0,0,0,0,0,0,0,0,0,0,0,0,0,0,10,0,0,0,0,0,0,0,0,0,0,0,0,-8]} 1. d4 {
[%emt 0:00:02]} d5 {[%emt 0:00:59]} 2. c4 {[%emt 0:00:08]} e6 {[%emt 0:00:06]}
3. Nf3 {[%emt 0:00:14]} Nf6 {[%emt 0:00:31]} 4. g3 {[%emt 0:00:06]} dxc4 {
[%emt 0:00:47]} 5. Bg2 {[%emt 0:00:14]} a6 {[%emt 0:00:42]} 6. Ne5 {[%emt 0:00:
00] White has compensation.} Bb4+ {[%emt 0:01:22] The position is equal. E04:
Open Catalan: 5 Nf3.} 7. Nc3 {[%emt 0:00:07] [#] Threatens to win with Qa4+.}
Nd5 {[%emt 0:00:21]} 8. Bd2 {[%emt 0:00:13]} Nb6 {[%emt 0:00:20]} 9. e3 {
[%emt 0:00:24]} N8d7 {[%emt 0:00:13]} 10. Nxd7 {[%emt 0:00:59]} Qxd7 {[%emt 0:
00:14]} 11. Ne4 {[%emt 0:01:49]} a5 {[%emt 0:00:21]} 12. O-O {[%emt 0:00:00]}
O-O {[%emt 0:03:17]} 13. Qc2 {[%emt 0:11:43]} Qe7 {[%emt 0:06:40]} 14. Bxb4 {
[%emt 0:08:05]} axb4 {[%emt 0:01:42]} 15. Nd2 {[%emt 0:00:36]} e5 {[%emt 0:10:
49]} 16. Nxc4 {[%emt 0:01:56]} Nxc4 {[%emt 0:00:36]} 17. Qxc4 {[%emt 0:00:05]}
exd4 {[%emt 0:03:23]} 18. exd4 {[%emt 0:00:30]} c6 {[%emt 0:00:00]} 19. Rfe1 {
[%emt 0:04:35]} Qd6 {[%emt 0:04:47]} 20. d5 {[%emt 0:08:12][%cal Rd5c6]
Inhibits Be6.} c5 $1 {[%emt 0:06:02]} 21. Qe4 {[%emt 0:16:18] [#]} Bd7 $146 {
[%emt 0:07:20]} ({Predecessor:} 21... b5 22. Qe7 Ra6 23. Qxd6 Rxd6 24. Rac1 c4
25. Re7 Bd7 26. b3 c3 27. Re4 Rxd5 28. Rxb4 {0-1 (54) Garv,G (1888) -Dauletova,
G (2233) Novi Sad 2020}) 22. Qe7 {[%emt 0:00:11]} Ra6 {[%emt 0:00:00]} 23. Qxd6
{[%emt 0:05:19]} Rxd6 {[%emt 0:00:04]} 24. a3 {[%emt 0:00:09]} bxa3 {[%emt 0:
05:51]} 25. Rxa3 {[%emt 0:00:07]} Re8 {[%emt 0:00:21]} 26. Rxe8+ {[%emt 0:04:
11]} Bxe8 $11 {[%emt 0:01:18] Endgame KRB-KRB} 27. Ra7 {[%emt 0:03:14]} b6 {
[%emt 0:06:01]} 28. Kf1 {[%emt 0:08:15]} Bb5+ {[%emt 0:00:00]} 29. Ke1 {
[%emt 0:01:57] [#] White wants to mate with Ra8+.} g5 {[%emt 0:00:00]} 30. b3 {
[%emt 0:01:20] Inhibits Bc4.} Kg7 {[%emt 0:03:09]} 31. Rb7 {[%emt 0:02:59]} Ba6
{[%emt 0:09:30]} 32. Rb8 {[%emt 0:01:20]} c4 {[%emt 0:00:00]} 33. Bf1 {[%emt 0:
04:49]} b5 {[%emt 0:00:08]} 34. bxc4 {[%emt 0:03:34] An interesting draw.
Weighted Error Value: White=0.02 (flawless) /Black=0.01 (flawless)} 1/2-1/2

[Event "44th Chess Olympiad Open 2022"]
[Site "Chennai"]
[Date "2022.08.07"]
[Round "9.26"]
[White "Greet, Andrew N"]
[Black "Kadric, Denis"]
[Result "1/2-1/2"]
[WhiteElo "2392"]
[BlackElo "2554"]
[Annotator "TA"]
[PlyCount "76"]
[EventDate "2022.??.??"]
[TimeControl "60"]

{[%evp 9,76,22,20,3,35,0,0,0,0,0,0,0,15,3,1,0,0,0,0,0,0,0,0,0,24,6,28,24,50,39,
47,19,47,49,49,49,62,63,52,54,56,74,70,41,54,43,56,24,28,8,10,8,19,3,3,0,0,0,0,
0,6,8,8,0,0,0,12,0,8]} 1. d4 {[%emt 0:00:04]} d6 {[%emt 0:00:04]} 2. e4 {
[%emt 0:00:10]} Nf6 {[%emt 0:00:13]} 3. Nc3 {[%emt 0:00:06]} Nbd7 {[%emt 0:00:
00]} 4. Nf3 {[%emt 0:00:18]} e5 {[%emt 0:00:05]} 5. Rg1 {[%emt 0:00:07]} c6 {
[%emt 0:01:19]} 6. g4 {[%emt 0:01:09] C41: Philidor Defence.} h6 {[%emt 0:00:
00]} 7. h4 {[%emt 0:14:48]} exd4 {[%emt 0:06:20]} 8. Nxd4 {[%emt 0:04:01]} Ne5
{[%emt 0:03:12][%cal Rf6g4]} 9. Be2 {[%emt 0:02:53]} d5 $1 {[%emt 0:02:37] [#]}
10. exd5 $146 {[%emt 0:27:35]} ({Predecessor:} 10. f4 Nfxg4 11. Rh1 Be7 12.
fxe5 Bxh4+ 13. Kf1 Nf2 14. Qd2 Nxh1 15. exd5 Ng3+ 16. Kg2 Nxe2 17. Qxe2 cxd5 {
½-½ (41) Indjic,A (2605)-Koellner,R (2454) Chess.com INT 2022}) 10... Nxd5 {
[%emt 0:00:06]} 11. Nxd5 {[%emt 0:00:08]} Qxd5 {[%emt 0:00:02]} 12. c3 {
[%emt 0:07:03]} Bc5 {[%emt 0:25:54]} 13. Be3 {[%emt 0:04:39]} Nc4 {[%emt 0:00:
00]} 14. Bxc4 {[%emt 0:01:51]} Qxc4 {[%emt 0:00:02]} 15. Qb3 {[%emt 0:00:15]}
Qxb3 {[%emt 0:11:28]} 16. axb3 {[%emt 0:00:09]} Be7 {[%emt 0:00:01]} 17. h5 {
[%emt 0:01:57]} a6 {[%emt 0:00:04]} 18. O-O-O {[%emt 0:06:37]} g6 {[%emt 0:00:
00] Inhibits Nf5.} 19. hxg6 {[%emt 0:03:26]} fxg6 {[%emt 0:00:04]} 20. Rde1 {
[%emt 0:01:52]} Bd7 {[%emt 0:09:39]} (20... Kf7 {seems wilder.} 21. Nf3 Bd6 22.
Bd4 Re8) 21. Nf3 {[%emt 0:02:55] And now Bc5 would win.} O-O-O $1 {[%emt 0:00:
00] [#]} 22. Bxh6 $1 {[%emt 0:08:21]} Bc5 {[%emt 0:03:35]} (22... Bd6 23. Be3)
23. Be3 {[%emt 0:01:03] White is more active.} Bxe3+ {[%emt 0:00:01]} 24. Rxe3
{[%emt 0:01:53]} Rdf8 {[%emt 0:00:46]} 25. Rg2 {[%emt 0:00:52]} Rh1+ {[%emt 0:
00:00]} 26. Re1 {[%emt 0:01:52]} Rxe1+ {[%emt 0:01:57]} 27. Nxe1 $14 {[%emt 0:
00:00] Endgame KRB-KRN} a5 {[%emt 0:00:04]} 28. f3 {[%emt 0:01:29]} Be6 {
[%emt 0:01:21]} 29. Kc2 {[%emt 0:00:39]} b5 {[%emt 0:03:31] Inhibits c4. The
position is equal.} 30. Re2 {[%emt 0:03:06]} Bd5 {[%emt 0:00:14]} 31. Re7 {
[%emt 0:01:43]} Rf6 {[%emt 0:00:13]} 32. b4 {[%emt 0:01:59]} axb4 {[%emt 0:00:
00]} 33. cxb4 {[%emt 0:00:05]} Rf4 {[%emt 0:01:06]} 34. Rg7 {[%emt 0:00:46]}
Rc4+ {[%emt 0:01:00]} 35. Kd2 {[%emt 0:00:33]} Rd4+ $1 {[%emt 0:01:11]} 36. Kc3
{[%emt 0:00:53]} Rc4+ {[%emt 0:01:21]} 37. Kd2 {[%emt 0:00:04]} Rd4+ $1 {
[%emt 0:00:55]} 38. Kc3 {[%emt 0:00:13]} Rc4+ {[%emt 0:00:24] Weighted Error
Value: White=0.06 (flawless) /Black=0.05 (flawless)} 1/2-1/2